fUST/lending_fUST_20250219
["ID","MTS","AMOUNT","RATE_DAILY","PERIOD"]
[353633440,1739971842265,-1500.79,0.0001526,2]
[353633441,1739971842275,-571.32,0.0001526,2]
[353633442,1739971842284,-500.0,0.0001526,2]
[353633443,1739971842293,-500.0,0.0001526,2]
[353633444,1739971842302,-2417.41,0.0001526,2]
[353633445,1739971842312,-875.14,0.0001526,2]
[353633446,1739971842322,-878.98,0.0001526,2]
[353633447,1739971842331,-151.0,0.000153,2]
[353633448,1739971842342,-151.0,0.000153,2]
[353633449,1739971842352,-1120.67,0.00015342,2]
[353633450,1739971842361,-5939.38,0.00015342,2]
[353633451,1739971842374,-1500.79,0.00015342,2]
[353633452,1739971842384,-571.32,0.00015342,2]
[353633453,1739971842393,-500.0,0.00015342,2]
[353633454,1739971842403,-191.98148451,0.00015342,2]
[353633455,1739971842412,-2417.41,0.00015342,2]
[353633456,1739971842422,-875.14,0.00015342,2]
[353633457,1739971842431,-878.98,0.00015342,2]
[353633458,1739971842441,-500.0,0.00015421,2]
[353633459,1739971842450,-1000.0,0.00015421,2]
[353633460,1739971842460,-1120.67,0.00015424,2]
[353633461,1739971842470,-5939.38,0.00015424,2]
[353633462,1739971842479,-1500.79,0.00015424,2]
[353633463,1739971842490,-571.32,0.00015424,2]
[353633465,1739971842500,-500.0,0.00015424,2]
[353633467,1739971842510,-2417.41,0.00015424,2]
[353633469,1739971842520,-875.14,0.00015424,2]
[353633471,1739971842530,-878.98,0.00015424,2]
[353633473,1739971842540,-587.0,0.00015432,2]
[353633474,1739971842550,-151.0,0.000155,2]
[353633476,1739971842560,-1120.67,0.00015506,2]
[353633478,1739971842570,-5939.38,0.00015506,2]
[353633480,1739971842580,-1500.79,0.00015506,2]
[353633482,1739971842592,-571.32,0.00015506,2]
[353633484,1739971842600,-500.0,0.00015506,2]
[353633486,1739971842610,-2417.41,0.00015506,2]
[353633488,1739971842620,-875.14,0.00015506,2]
[353633490,1739971842630,-878.98,0.00015506,2]
[353633492,1739971842640,-600.0,0.00015534,2]
[353633494,1739971842650,-309.77384704,0.00015575,2]
[353633495,1739971842659,-1120.86171535,0.00015589,2]
[353633496,1739971842669,-5939.46319557,0.00015589,2]
[353633497,1739971842678,-1500.8355477,0.00015589,2]
[353633498,1739971842687,-571.4429392,0.00015589,2]
[353633499,1739971842697,-375.52381126,0.00015589,2]
[353633500,1739971842707,-2417.48740344,0.00015589,2]
[353633501,1739971842717,-875.22035416,0.00015589,2]
[353633503,1739971842728,-879.0075047,0.00015589,2]
[353633504,1739971842738,-168.68376444,0.00015614,2]
[353633505,1739971842747,-151.0,0.000157,2]
[353633506,1739971842757,-151.0,0.000157,2]
[353633507,1739971842767,-186.547101,0.00015775,2]
[353633508,1739971842777,-1003.62720318,0.00015818,2]
[353633510,1739971842786,-1500.0,0.00015854,2]
[353633512,1739971842795,-151.0,0.00016,2]
[353633513,1739971842804,-1004.95281179,0.00016022,2]
[353633514,1739971842814,-1500.0,0.00016022,2]
[353633515,1739971842823,-151.0,0.000161,2]
[353633516,1739971842833,-151.0,0.000161,2]
[353633518,1739971842843,-499.0,0.00016164,2]
[353633520,1739971842852,-163.32279024,0.00016173,2]
[353633521,1739971842861,-500.0,0.00016173,2]
[353633523,1739971842871,-500.0,0.00016173,2]
[353633524,1739971842880,-500.0,0.00016173,2]
[353633525,1739971842890,-500.0,0.00016173,2]
[353633526,1739971842900,-261.70172979,0.00016173,2]
[353633527,1739971842909,-59843.7751385,0.000162,2]
[353633528,1739971842921,-59843.77513849,0.000162,2]
[353633529,1739971842933,-59843.77513849,0.000162,2]
[353633530,1739971842943,-309.77384704,0.0001635,2]
[353633531,1739971842953,-557.1188801,0.00016391,2]
[353633532,1739971842962,-557.1188801,0.00016391,2]
[353633533,1739971842973,-557.1188801,0.00016391,2]
[353633534,1739971842983,-151.0,0.000164,2]
[353633535,1739971842992,-151.0,0.000164,2]
[353633536,1739971843003,-151.0,0.000164,2]
[353633537,1739971843013,-1500.0,0.00016422,2]
[353633538,1739971843023,-1000.0,0.00016438,2]
[353633539,1739971843032,-1000.0,0.00016438,2]
[353633540,1739971843042,-397.53754396,0.00016438,2]
[353633541,1739971843051,-10052.38462478,0.000165,2]
[353633542,1739971843060,-153.36348279,0.00016507,2]
[353633543,1739971843070,-153.36348279,0.00016507,2]
[353633544,1739971843079,-153.36348279,0.00016507,2]
[353633545,1739971843089,-153.36348279,0.00016507,2]
[353633546,1739971843099,-153.36348279,0.00016507,2]
[353633547,1739971843109,-153.36348279,0.00016507,2]
[353633549,1739971843118,-153.36,0.00016507,2]
[353633550,1739971843128,-152.53437279,0.00016507,2]
[353633551,1739971843137,-152.53437279,0.00016507,2]
[353633552,1739971843146,-152.53437279,0.00016507,2]
[353633553,1739971843155,-152.53437279,0.00016507,2]
[353633554,1739971843165,-152.53437279,0.00016507,2]
[353633555,1739971843174,-152.53437279,0.00016507,2]
[353633556,1739971843184,-152.53437279,0.00016507,2]
[353633557,1739971843194,-152.53437279,0.00016507,2]
[353633558,1739971843203,-152.53437279,0.00016507,2]
[353633559,1739971843212,-152.53437279,0.00016507,2]
[353633560,1739971843222,-152.53437279,0.00016507,2]
[353633561,1739971843231,-152.53437279,0.00016507,2]
[353633562,1739971843242,-152.53437279,0.00016507,2]
[353633563,1739971843251,-152.53437279,0.00016507,2]
[353633564,1739971843262,-152.53437279,0.00016507,2]
[353633565,1739971843271,-152.53437279,0.00016507,2]
[353633566,1739971843379,-152.53,0.00016507,2]
[353633567,1739971843389,-59843.77513849,0.00016607,2]
[353633568,1739971843398,-456.0,0.00016641,2]
[353633569,1739971843408,-456.0,0.00016641,2]
[353633570,1739971843417,-456.0,0.00016641,2]
[353633571,1739971843426,-456.0,0.00016641,2]
[353633572,1739971843436,-456.0,0.00016641,2]
[353633573,1739971843445,-456.0,0.00016641,2]
[353633574,1739971843454,-456.0,0.00016641,2]
[353633575,1739971843463,-456.0,0.00016641,2]
[353633576,1739971843473,-456.0,0.00016641,2]
[353633577,1739971843482,-456.0,0.00016641,2]
[353633578,1739971843491,-456.0,0.00016641,2]
[353633579,1739971843501,-587.0,0.00016642,2]
[353633580,1739971843510,-587.0,0.00016642,2]
[353633581,1739971843519,-587.0,0.00016642,2]
[353633582,1739971843529,-587.0,0.00016642,2]
[353633583,1739971843538,-587.0,0.00016642,2]
[353633584,1739971843548,-587.0,0.00016642,2]
[353633585,1739971843562,-587.0,0.00016642,2]
[353633586,1739971843572,-587.0,0.00016642,2]
[353633587,1739971843581,-456.0,0.00016643,2]
[353633588,1739971843592,-456.0,0.00016643,2]
[353633589,1739971843601,-456.0,0.00016643,2]
[353633590,1739971843611,-456.0,0.00016643,2]
[353633591,1739971843619,-456.0,0.00016643,2]
[353633592,1739971843629,-456.0,0.00016643,2]
[353633593,1739971843638,-456.0,0.00016643,2]
[353633594,1739971843648,-456.0,0.00016643,2]
[353633595,1739971843657,-456.0,0.00016643,2]
[353633596,1739971843667,-456.0,0.00016643,2]
[353633597,1739971843676,-456.0,0.00016643,2]
[353633598,1739971843686,-456.0,0.00016643,2]
[353633599,1739971843696,-456.0,0.00016643,2]
[353633600,1739971843705,-456.0,0.00016643,2]
[353633601,1739971843714,-587.0,0.00016644,2]
[353633602,1739971843723,-587.0,0.00016644,2]
[353633603,1739971843733,-587.0,0.00016644,2]
[353633604,1739971843742,-587.0,0.00016644,2]
[353633605,1739971843751,-587.0,0.00016644,2]
[353633606,1739971843761,-587.0,0.00016644,2]
[353633607,1739971843770,-587.0,0.00016644,2]
[353633608,1739971843779,-456.0,0.00016648,2]
[353633609,1739971843788,-456.0,0.00016648,2]
[353633610,1739971843798,-456.0,0.00016648,2]
[353633611,1739971843807,-456.0,0.00016648,2]
[353633612,1739971843816,-456.0,0.00016648,2]
[353633613,1739971843825,-456.0,0.00016648,2]
[353633614,1739971843835,-456.0,0.00016648,2]
[353633615,1739971843844,-456.0,0.00016648,2]
[353633616,1739971843853,-456.0,0.00016648,2]
[353633617,1739971843863,-456.0,0.00016648,2]
[353633618,1739971843872,-456.0,0.00016648,2]
[353633619,1739971843882,-456.0,0.00016648,2]
[353633620,1739971843891,-456.0,0.00016648,2]
[353633621,1739971843901,-456.0,0.00016648,2]
[353633622,1739971843910,-456.0,0.00016648,2]
[353633623,1739971843920,-456.0,0.00016648,2]
[353633624,1739971843933,-456.0,0.00016648,2]
[353633625,1739971843943,-587.0,0.00016648,2]
[353633626,1739971843952,-587.0,0.00016648,2]
[353633627,1739971843962,-587.0,0.00016648,2]
[353633628,1739971843974,-587.0,0.00016648,2]
[353633629,1739971843984,-587.0,0.00016648,2]
[353633630,1739971843993,-587.0,0.00016648,2]
[353633631,1739971844005,-587.0,0.00016648,2]
[353633632,1739971844015,-587.0,0.00016648,2]
[353633633,1739971844025,-587.0,0.00016648,2]
[353633634,1739971844035,-587.0,0.00016648,2]
[353633635,1739971844045,-587.0,0.00016648,2]
[353633636,1739971844054,-587.0,0.00016648,2]
[353633637,1739971844064,-587.0,0.00016648,2]
[353633638,1739971844073,-587.0,0.00016648,2]
[353633639,1739971844083,-587.0,0.00016648,2]
[353633640,1739971844093,-587.0,0.00016648,2]
[353633641,1739971844103,-1000.0,0.00016721,2]
[353633642,1739971844112,-1000.0,0.00016721,2]
[353633643,1739971844121,-522.21733561,0.00016721,2]
[353633644,1739971844131,-1072.78652871,0.00016721,2]
[353633645,1739971844140,-467.5136888,0.00016735,2]
[353633646,1739971844150,-500.0,0.00016739,2]
[353633647,1739971844159,-151.0,0.000168,2]
[353633648,1739971844170,-151.0,0.000168,2]
[353633649,1739971844181,-151.0,0.000168,2]
[353633650,1739971844194,-500.0,0.00016839,2]
[353633651,1739971844211,-498.57453263,0.0001687,2]
[353633652,1739971844220,-600.0,0.00016904,2]
[353633653,1739971844229,-823.0,0.00016927,2]
[353633654,1739971844239,-500.0,0.00016939,2]
[353633655,1739971844248,-1000.0,0.00017,17]
[353633656,1739971844258,-500.0,0.00017,7]
[353633657,1739971844267,-500.0,0.00017,7]
[353633658,1739971844277,-500.0,0.00017,7]
[353633659,1739971844287,-500.0,0.00017,7]
[353633660,1739971844296,-500.0,0.00017,7]
[353633661,1739971844306,-500.0,0.00017,7]
[353633662,1739971844315,-500.0,0.00017,7]
[353633663,1739971844325,-500.0,0.00017,7]
[353633664,1739971844334,-566.69,0.00017,7]
[353633665,1739971844344,-500.0,0.00017,7]
[353633666,1739971844354,-674.26532336,0.00017,2]
[353633667,1739971844363,-363.02939924,0.00017,2]
[353633668,1739971844374,-500.0,0.00017039,2]
[353633669,1739971844383,-219.544932,0.00017123,2]
[353633670,1739971844393,-309.77384704,0.00017125,2]
[353633671,1739971844403,-500.0,0.00017139,2]
[353633672,1739971844413,-1503.6147836,0.00017151,2]
[353633673,1739971844423,-151.0,0.000172,2]
[353633674,1739971844433,-151.0,0.000172,2]
[353633675,1739971844443,-151.0,0.000172,2]
[353633676,1739971844452,-557.1188801,0.00017213,2]
[353633677,1739971844462,-557.1188801,0.00017213,2]
[353633678,1739971844472,-557.1188801,0.00017213,2]
[353633679,1739971844481,-557.1188801,0.00017213,2]
[353633680,1739971844491,-500.0,0.00017239,2]
[353633681,1739971844500,-309.028151,0.00017255,2]
[353633682,1739971844510,-1150.54605966,0.0001732,2]
[353633683,1739971844520,-500.0,0.00017339,2]
[353633684,1739971844530,-500.0,0.00017439,2]
[353633685,1739971844539,-13498.23162692,0.000175,2]
[353633686,1739971844548,-154.65899617,0.00017534,4]
[353633687,1739971844558,-500.0,0.00017539,2]
[353633688,1739971844567,-1971.0,0.00017553,2]
[353633689,1739971844576,-538.0,0.00017553,2]
[353633690,1739971844585,-2288.0,0.00017553,2]
[353633691,1739971844594,-396.0,0.00017553,2]
[353633692,1739971844604,-151.0,0.000176,2]
[353633693,1739971844613,-163.67464,0.000176,2]
[353633694,1739971844622,-151.0,0.000176,2]
[353633695,1739971844632,-151.0,0.000176,2]
[353633696,1739971844642,-151.0,0.000176,2]
[353633697,1739971844651,-2500.0,0.00017609,2]
[353633698,1739971844661,-2500.0,0.00017618,2]
[353633699,1739971844670,-2500.0,0.00017627,2]
[353633700,1739971844679,-2500.0,0.00017636,2]
[353633701,1739971844689,-2269.2765113,0.00017639,2]
[353633702,1739971844698,-500.0,0.00017639,2]
[353633703,1739971844707,-193.83841,0.0001764,5]
[353633704,1739971844716,-2500.0,0.00017645,2]
[353633705,1739971844726,-2500.0,0.00017653,2]
[353633706,1739971844735,-2500.0,0.00017662,2]
[353633707,1739971844745,-2500.0,0.00017671,2]
[353633708,1739971844754,-324.0,0.0001768,2]
[353633709,1739971844763,-934.0,0.000177,2]
[353633710,1739971844773,-2144.4288868,0.0001772,2]
[353633711,1739971844782,-501.30101814,0.00017722,2]
[353633712,1739971844792,-1500.0,0.00017722,2]
[353633713,1739971844801,-13275.53870192,0.00017723,2]
[353633714,1739971844811,-500.0,0.00017739,2]
[353633715,1739971844820,-250.0,0.000178,10]
[353633716,1739971844829,-14630.41500645,0.000178,2]
[353633717,1739971844839,-500.0,0.00017839,2]
[353633718,1739971844849,-150.78984482,0.0001789,2]
[353633719,1739971844859,-150.78,0.0001789,2]
[353633720,1739971844868,-156.55855535,0.0001789,2]
[353633721,1739971844878,-156.55855535,0.0001789,2]
[353633722,1739971844887,-156.55855535,0.0001789,2]
[353633723,1739971844896,-156.55855535,0.0001789,2]
[353633724,1739971844906,-156.55855535,0.0001789,2]
[353633725,1739971844918,-156.55855535,0.0001789,2]
[353633726,1739971844932,-156.55855535,0.0001789,2]
[353633727,1739971844942,-156.55855535,0.0001789,2]
[353633728,1739971844952,-156.55855535,0.0001789,2]
[353633729,1739971844964,-156.55855535,0.0001789,2]
[353633730,1739971844974,-156.55855535,0.0001789,2]
[353633731,1739971844983,-156.55855535,0.0001789,2]
[353633732,1739971844994,-156.55855535,0.0001789,2]
[353633733,1739971845004,-156.55855535,0.0001789,2]
[353633734,1739971845013,-156.55855535,0.0001789,2]
[353633735,1739971845023,-156.55,0.0001789,2]
[353633736,1739971845033,-302.52650604,0.0001789,2]
[353633737,1739971845043,-302.52650604,0.0001789,2]
[353633738,1739971845053,-302.52650604,0.0001789,2]
[353633739,1739971845062,-302.52650604,0.0001789,2]
[353633740,1739971845072,-302.52650604,0.0001789,2]
[353633741,1739971845081,-302.52650604,0.0001789,2]
[353633742,1739971845092,-302.52650604,0.0001789,2]
[353633743,1739971845101,-302.52650604,0.0001789,2]
[353633744,1739971845111,-302.52650604,0.0001789,2]
[353633745,1739971845121,-302.52650604,0.0001789,2]
[353633746,1739971845130,-302.52650604,0.0001789,2]
[353633747,1739971845139,-302.52650604,0.0001789,2]
[353633748,1739971845149,-302.52650604,0.0001789,2]
[353633749,1739971845159,-302.52650604,0.0001789,2]
[353633750,1739971845168,-302.52650604,0.0001789,2]
[353633751,1739971845178,-302.52650604,0.0001789,2]
[353633752,1739971845187,-302.52650604,0.0001789,2]
[353633753,1739971845197,-302.52650604,0.0001789,2]
[353633754,1739971845207,-302.52650604,0.0001789,2]
[353633755,1739971845216,-302.52,0.0001789,2]
[353633756,1739971845226,-1907.27261752,0.00017898,2]
[353633757,1739971845236,-3000.0,0.000179,2]
[353633758,1739971845245,-3000.0,0.000179,2]
[353633759,1739971845255,-309.77384704,0.000179,2]
[353633760,1739971845265,-59843.77513849,0.000179,2]
[353633761,1739971845274,-168.68376444,0.000179,2]
[353633762,1739971845283,-5000.0,0.00017916,2]
[353633763,1739971845293,-5000.0,0.00017916,2]
[353633764,1739971845302,-5000.0,0.00017916,2]
[353633765,1739971845312,-5000.0,0.00017916,2]
[353633766,1739971845322,-5000.0,0.00017916,2]
[353633767,1739971845332,-500.0,0.00017939,2]
[353633768,1739971845343,-500.0,0.00017973,2]
[353633769,1739971845352,-500.0,0.00017973,2]
[353633770,1739971845361,-500.18961432,0.00017973,2]
[353633771,1739971845370,-500.83239552,0.00017973,2]
[353633772,1739971845379,-500.0,0.00017973,2]
[353633773,1739971845389,-500.0,0.00017973,2]
[353633774,1739971845399,-500.38816275,0.00017973,2]
[353633775,1739971845409,-160.04038112,0.00017973,2]
[353633776,1739971845419,-500.0,0.00017973,2]
[353633777,1739971845428,-500.0,0.00017973,2]
[353633778,1739971845438,-353.60210934,0.00017973,2]
[353633779,1739971845448,-500.0,0.00017973,2]
[353633780,1739971845457,-431.13927372,0.00017973,2]
[353633781,1739971845467,-236913.37427604,0.0001799,2]
[353633782,1739971845477,-578.82782987,0.00017998,2]
[353633783,1739971845487,-202.33373883,0.00017998,2]
[353633784,1739971845496,-151.0,0.00017999,2]
[353633785,1739971845506,-789.616638,0.00017999,2]
[353633786,1739971845515,-789.616638,0.00017999,2]
[353633787,1739971845525,-160.0,0.00017999,2]
[353633788,1739971845534,-58157.87020218,0.00017999,2]
[353633789,1739971845544,-485.52115734,0.00017999,2]
[353633790,1739971845553,-160.0,0.00017999,2]
[353633791,1739971845563,-2200.0,0.00017999,2]
[353633792,1739971845573,-80335.29243213,0.00018,5]
[353633793,1739971845582,-24200.96385285,0.00018,5]
[353633794,1739971845593,-352154.33871261,0.00018,15]
[353633797,1739971845839,-5916.4563973,0.00018,15]
[353633798,1739971845851,-22554.91996983,0.00018,15]
[353633799,1739971845883,-32160.238068,0.00018,15]
[353633800,1739971846244,-7837.10340662,0.00013561,2]
[353633801,1739971846254,-500.0,0.00013698,2]
[353633802,1739971846264,-840264.54287244,0.00018,15]
[353633803,1739971846515,-568.1156279,0.00016391,2]
[353633804,1739971846524,-477.76552836,0.00018,15]
[353633819,1739972536440,187.012637,9.041e-05,2]
[353633825,1739972836129,-185.108295,0.00013335,2]
[353633826,1739972852100,-114.891705,0.00013335,2]
[353633827,1739972852122,-1367.26739722,0.00013336,2]
[353633847,1739973032532,-300.0,0.0001307,2]
[353633848,1739973032542,-300.0,0.00013202,2]
[353633849,1739973032552,-300.0,0.00013335,2]
[353633850,1739973032561,-4646.79999998,0.00013336,2]
[353633851,1739973032573,-6268.94306385,0.00013336,2]
[353633882,1739973038136,-250.0,0.00012554,2]
[353633883,1739973038147,-903.97,0.00013336,2]
[353633884,1739973038159,-854.35349281,0.00013336,2]
[353633885,1739973038197,-10858.66604614,0.00013336,2]
[353633886,1739973038206,-292.7122065,0.00013442,2]
[353633887,1739973038216,-168.68376444,0.00013598,2]
[353633888,1739973038226,-574.95553407,0.00013697,2]
[353633889,1739973038235,-500.0,0.00013698,2]
[353633890,1739973038244,-502.97780848,0.00013698,2]
[353633891,1739973038254,-621.78067899,0.00013698,2]
[353633892,1739973038264,-500.0,0.00013698,2]
[353633893,1739973038274,-500.0,0.00013698,2]
[353633894,1739973038284,-500.0,0.00013698,2]
[353633895,1739973038297,-500.0,0.00013698,2]
[353633896,1739973038307,-500.0,0.00013698,2]
[353633897,1739973038320,-500.0,0.00013698,2]
[353633898,1739973038330,-500.0,0.00013698,2]
[353633899,1739973038340,-545.97778495,0.00013698,2]
[353633900,1739973038351,-223.89,0.00013698,2]
[353633901,1739973038361,-500.0,0.00013698,2]
[353633902,1739973038370,-500.0,0.00013698,2]
[353633903,1739973038379,-412.93572517,0.00013698,2]
[353633904,1739973038391,-500.0,0.00013698,2]
[353633905,1739973038402,-500.0,0.00013698,2]
[353633906,1739973038411,-500.0,0.00013698,2]
[353633907,1739973038422,-500.0,0.00013698,2]
[353633908,1739973038431,-1856.39,0.00013698,2]
[353633909,1739973038442,-500.0,0.00013698,2]
[353633910,1739973038452,-500.0,0.00013698,2]
[353633911,1739973038461,-500.0,0.00013698,2]
[353633912,1739973038474,-500.0,0.00013698,2]
[353633913,1739973038484,-500.0,0.00013698,2]
[353633914,1739973038494,-500.0,0.00013698,2]
[353633915,1739973038504,-590.58951733,0.00013698,2]
[353633916,1739973038514,-500.0,0.00013698,2]
[353633917,1739973038524,-1485.14,0.00013698,2]
[353633918,1739973038533,-977.09093393,0.00013698,2]
[353633919,1739973038546,-4614.89906607,0.00013698,2]
[353633920,1739973038555,-500.0,0.00013698,2]
[353633921,1739973038565,-500.0,0.00013698,2]
[353633922,1739973038575,-500.0,0.00013698,2]
[353633923,1739973038585,-500.0,0.00013698,2]
[353633924,1739973038595,-697.18,0.00013698,2]
[353633925,1739973038604,-500.0,0.00013698,2]
[353633926,1739973038614,-1602.59,0.00013698,2]
[353633927,1739973038624,-618.44,0.00013698,2]
[353633928,1739973038634,-621.30384719,0.00013698,2]
[353633929,1739973038643,-183.733152,0.00013699,2]
[353633930,1739973038653,-169.8373946,0.00013699,2]
[353633931,1739973038663,-500.0,0.0001378,2]
[353633932,1739973038673,-570.17,0.0001378,2]
[353633933,1739973038683,-500.0,0.0001378,2]
[353633934,1739973038693,-500.0,0.0001378,2]
[353633935,1739973038702,-259.14,0.0001378,2]
[353633936,1739973038711,-500.0,0.0001378,2]
[353633937,1739973038721,-1856.39,0.0001378,2]
[353633938,1739973038730,-500.0,0.0001378,2]
[353633939,1739973038740,-500.0,0.0001378,2]
[353633940,1739973038749,-343.54,0.0001378,2]
[353633941,1739973038759,-1485.14,0.0001378,2]
[353633942,1739973038769,-500.0,0.0001378,2]
[353633943,1739973038779,-5591.99,0.0001378,2]
[353633944,1739973038788,-500.0,0.0001378,2]
[353633945,1739973038798,-500.0,0.0001378,2]
[353633946,1739973038807,-500.0,0.0001378,2]
[353633947,1739973038816,-500.0,0.0001378,2]
[353633948,1739973038826,-697.18,0.0001378,2]
[353633949,1739973038835,-500.0,0.0001378,2]
[353633950,1739973038845,-1602.59,0.0001378,2]
[353633951,1739973038854,-618.44,0.0001378,2]
[353633952,1739973038864,-500.0,0.00013863,2]
[353633953,1739973038873,-500.0,0.00013863,2]
[353633954,1739973038883,-500.0,0.00013863,2]
[353633955,1739973038892,-1856.39,0.00013863,2]
[353633956,1739973038901,-500.0,0.00013863,2]
[353633957,1739973038911,-500.0,0.00013863,2]
[353633958,1739973038920,-1485.14,0.00013863,2]
[353633959,1739973038930,-500.0,0.00013863,2]
[353633960,1739973038940,-5591.99,0.00013863,2]
[353633961,1739973038950,-403.33663562,0.00013863,2]
[353633962,1739973038959,-500.0,0.00013863,2]
[353633963,1739973038968,-500.0,0.00013863,2]
[353633964,1739973038977,-500.0,0.00013863,2]
[353633965,1739973038987,-697.18,0.00013863,2]
[353633966,1739973038996,-500.0,0.00013863,2]
[353633967,1739973039006,-1602.59,0.00013863,2]
[353633968,1739973039015,-618.44,0.00013863,2]
[353633969,1739973039024,-500.0,0.00013944,2]
[353633970,1739973039034,-500.0,0.00013945,2]
[353633971,1739973039043,-500.0,0.00013945,2]
[353633972,1739973039052,-500.0,0.00013945,2]
[353633973,1739973039061,-1856.39,0.00013945,2]
[353633974,1739973039071,-500.0,0.00013945,2]
[353633975,1739973039080,-500.0,0.00013945,2]
[353633976,1739973039090,-1485.14,0.00013945,2]
[353633977,1739973039099,-500.0,0.00013945,2]
[353633978,1739973039109,-5591.99,0.00013945,2]
[353633979,1739973039119,-500.0,0.00013945,2]
[353633980,1739973039128,-500.0,0.00013945,2]
[353633981,1739973039138,-500.0,0.00013945,2]
[353633982,1739973039148,-697.18,0.00013945,2]
[353633983,1739973039158,-500.0,0.00013945,2]
[353633984,1739973039168,-1602.59,0.00013945,2]
[353633985,1739973039178,-618.44,0.00013945,2]
[353633986,1739973039188,-500.0,0.00014027,2]
[353633987,1739973039199,-500.0,0.00014027,2]
[353633988,1739973039210,-500.0,0.00014027,2]
[353633989,1739973039223,-1856.39,0.00014027,2]
[353633990,1739973039234,-500.0,0.00014027,2]
[353633991,1739973039245,-500.0,0.00014027,2]
[353633992,1739973039255,-1485.14,0.00014027,2]
[353633993,1739973039265,-500.0,0.00014027,2]
[353633994,1739973039275,-5591.99,0.00014027,2]
[353633995,1739973039285,-500.0,0.00014027,2]
[353633996,1739973039295,-500.0,0.00014027,2]
[353633997,1739973039305,-500.0,0.00014027,2]
[353633998,1739973039318,-697.18,0.00014027,2]
[353633999,1739973039328,-500.0,0.00014027,2]
[353634000,1739973039337,-1602.59,0.00014027,2]
[353634001,1739973039346,-618.44,0.00014027,2]
[353634002,1739973039357,-151.0,0.000141,2]
[353634003,1739973039366,-500.0,0.00014108,2]
[353634004,1739973039375,-500.0,0.00014109,2]
[353634005,1739973039385,-500.0,0.00014109,2]
[353634006,1739973039396,-500.0,0.00014109,2]
[353634007,1739973039407,-1856.39,0.00014109,2]
[353634008,1739973039417,-500.0,0.00014109,2]
[353634009,1739973039426,-500.0,0.00014109,2]
[353634010,1739973039437,-1485.14,0.00014109,2]
[353634011,1739973039446,-500.0,0.00014109,2]
[353634012,1739973039455,-5591.99,0.00014109,2]
[353634013,1739973039465,-500.0,0.00014109,2]
[353634014,1739973039475,-500.0,0.00014109,2]
[353634015,1739973039484,-500.0,0.00014109,2]
[353634016,1739973039493,-697.18,0.00014109,2]
[353634017,1739973039502,-500.0,0.00014109,2]
[353634018,1739973039511,-1602.59,0.00014109,2]
[353634019,1739973039520,-618.44,0.00014109,2]
[353634020,1739973039530,-500.0,0.00014164,2]
[353634021,1739973039539,-500.0,0.00014191,2]
[353634022,1739973039551,-500.0,0.00014191,2]
[353634023,1739973039562,-500.0,0.00014191,2]
[353634024,1739973039571,-1856.39,0.00014191,2]
[353634025,1739973039581,-500.0,0.00014191,2]
[353634026,1739973039590,-500.0,0.00014191,2]
[353634027,1739973039600,-1485.14,0.00014191,2]
[353634028,1739973039609,-500.0,0.00014191,2]
[353634029,1739973039618,-5591.99,0.00014191,2]
[353634030,1739973039628,-511.14248043,0.00014191,2]
[353634031,1739973039638,-275.45054855,0.00014191,2]